fUST/lending_fUST_20251010
["ID","MTS","AMOUNT","RATE_DAILY","PERIOD"]
[390589098,1760095841266,-500.0,0.00016438,2]
[390589100,1760095841275,-151.0,0.00016438,2]
[390589102,1760095841284,-500.0,0.00016438,2]
[390589104,1760095841293,-151.0,0.00016438,2]
[390589106,1760095841302,-151.0,0.00016438,2]
[390589108,1760095841312,-816.33,0.00016438,2]
[390589110,1760095841322,-500.0,0.00016438,2]
[390589111,1760095841331,-500.0,0.00016438,2]
[390589112,1760095841340,-1826.06,0.00016438,2]
[390589113,1760095841350,-500.0,0.00016438,2]
[390589114,1760095841358,-151.0,0.00016438,2]
[390589115,1760095841367,-681.31,0.00016438,2]
[390589116,1760095841376,-555.79,0.00016438,2]
[390589117,1760095841385,-151.0,0.00016438,2]
[390589118,1760095841394,-854.27,0.00016438,2]
[390589119,1760095841403,-151.0,0.00016438,2]
[390589120,1760095841411,-631.35617381,0.00016438,2]
[390589121,1760095841421,-500.0,0.00016438,2]
[390589122,1760095841430,-500.0,0.00016438,2]
[390589123,1760095841439,-502.44828813,0.00016438,2]
[390589124,1760095841448,-414.2972915,0.00016438,2]
[390589125,1760095841457,-500.0,0.00016438,2]
[390589126,1760095841465,-500.0,0.00016438,2]
[390589127,1760095841474,-500.0,0.00016438,2]
[390589128,1760095841483,-500.0,0.00016438,2]
[390589129,1760095841492,-551.77,0.00016438,2]
[390589130,1760095841501,-574.27,0.00016438,2]
[390589131,1760095841510,-500.0,0.00016438,2]
[390589132,1760095841519,-500.0,0.00016438,2]
[390589133,1760095841528,-500.0,0.00016438,2]
[390589134,1760095841536,-500.0,0.00016438,2]
[390589135,1760095841548,-151.0,0.00016438,2]
[390589136,1760095841557,-500.0,0.00016438,2]
[390589137,1760095841566,-500.0,0.00016438,2]
[390589138,1760095841575,-500.0,0.00016438,2]
[390589139,1760095841585,-983.55,0.00016438,2]
[390589140,1760095841595,-2684.75,0.00016438,2]
[390589141,1760095841604,-171.840987,0.00016438,2]
[390589142,1760095841613,-500.0,0.00016438,2]
[390589143,1760095841625,-171.840987,0.00016438,2]
[390589144,1760095841634,-500.0,0.00016438,2]
[390589145,1760095841643,-500.0,0.00016438,2]
[390589146,1760095841652,-171.840987,0.00016438,2]
[390589147,1760095841661,-500.0,0.00016438,2]
[390589148,1760095841670,-1820.76,0.00016438,2]
[390589149,1760095841679,-500.0,0.00016438,2]
[390589150,1760095841688,-171.840987,0.00016438,2]
[390589151,1760095841700,-500.0,0.00016438,2]
[390589152,1760095841709,-500.0,0.00016438,2]
[390589153,1760095841718,-500.0,0.00016438,2]
[390589154,1760095841727,-615.19,0.00016438,2]
[390589155,1760095841737,-768.74,0.00016438,2]
[390589156,1760095841745,-502.38203244,0.00016438,2]
[390589157,1760095841754,-500.0,0.00016438,2]
[390589158,1760095841763,-538.49870538,0.00016438,2]
[390589159,1760095841772,-500.0,0.00016438,2]
[390589160,1760095841780,-500.0,0.00016438,2]
[390589161,1760095841790,-503.01189571,0.00016438,2]
[390589162,1760095841799,-500.0,0.00016438,2]
[390589163,1760095841808,-500.0,0.00016438,2]
[390589164,1760095841817,-151.0,0.00016438,2]
[390589165,1760095841826,-500.0,0.00016438,2]
[390589166,1760095841836,-500.0,0.00016438,2]
[390589167,1760095841846,-1000.0,0.00016438,2]
[390589168,1760095841855,-1463.82071191,0.00016481,2]
[390589169,1760095841864,-391.7808599,0.000165,2]
[390589170,1760095841874,-168.0,0.00016593,2]
[390589171,1760095841887,-551.5503027,0.00016612,2]
[390589172,1760095841897,-211.983586,0.00016612,2]
[390589173,1760095841906,-211.983586,0.00016612,2]
[390589174,1760095841914,-211.983586,0.00016612,2]
[390589175,1760095841925,-211.983586,0.00016612,2]
[390589176,1760095841934,-151.402919,0.00016612,2]
[390589177,1760095841943,-168.0,0.0001666,2]
[390589178,1760095841953,-168.0,0.00016709,2]
[390589179,1760095841963,-1000.0,0.00016711,2]
[390589180,1760095841972,-151.0,0.00016711,2]
[390589181,1760095841981,-286.371093,0.00016711,2]
[390589182,1760095841990,-151.0,0.00016711,2]
[390589183,1760095841998,-151.0,0.00016711,2]
[390589184,1760095842008,-151.0,0.00016711,2]
[390589185,1760095842017,-151.0,0.00016711,2]
[390589186,1760095842026,-151.0,0.00016711,2]
[390589187,1760095842036,-151.0,0.00016711,2]
[390589188,1760095842045,-151.0,0.00016711,2]
[390589189,1760095842054,-152.031456,0.00016711,2]
[390589190,1760095842063,-151.506493,0.00016711,2]
[390589191,1760095842072,-154.020421,0.00016711,2]
[390589192,1760095842081,-261.392589,0.00016711,2]
[390589193,1760095842091,-152.507168,0.00016711,2]
[390589194,1760095842101,-151.386704,0.00016711,2]
[390589195,1760095842111,-151.681857,0.00016711,2]
[390589196,1760095842119,-151.0,0.00016711,2]
[390589197,1760095842129,-151.0,0.00016711,2]
[390589198,1760095842139,-151.0,0.00016711,2]
[390589199,1760095842149,-151.0,0.00016711,2]
[390589200,1760095842159,-151.0,0.00016711,2]
[390589201,1760095842169,-295.025386,0.00016711,2]
[390589202,1760095842178,-151.0,0.00016711,2]
[390589203,1760095842187,-4249.09,0.00016711,2]
[390589204,1760095842196,-4249.09,0.00016711,2]
[390589205,1760095842206,-4249.09,0.00016711,2]
[390589206,1760095842215,-4249.09,0.00016711,2]
[390589207,1760095842224,-4249.09,0.00016711,2]
[390589208,1760095842233,-4249.09,0.00016711,2]
[390589209,1760095842242,-4249.09,0.00016711,2]
[390589210,1760095842251,-293.014755,0.00016711,2]
[390589211,1760095842261,-293.014755,0.00016711,2]
[390589212,1760095842270,-293.014755,0.00016711,2]
[390589213,1760095842280,-293.014755,0.00016711,2]
[390589214,1760095842289,-151.0,0.00016711,2]
[390589215,1760095842300,-151.0,0.00016711,2]
[390589216,1760095842309,-151.0,0.00016711,2]
[390589217,1760095842318,-151.0,0.00016711,2]
[390589218,1760095842327,-151.0,0.00016711,2]
[390589219,1760095842335,-151.0,0.00016711,2]
[390589220,1760095842344,-161.912305,0.00016711,2]
[390589221,1760095842353,-500.0,0.00016712,2]
[390589222,1760095842361,-500.0,0.00016712,2]
[390589223,1760095842370,-500.0,0.00016712,2]
[390589224,1760095842379,-1683.3564711,0.00016712,2]
[390589225,1760095842387,-502.54654759,0.00016712,2]
[390589226,1760095842397,-517.36172355,0.00016712,2]
[390589227,1760095842405,-500.0,0.00016712,2]
[390589228,1760095842414,-500.0,0.00016712,2]
[390589229,1760095842423,-501.73212734,0.00016712,2]
[390589230,1760095842433,-500.0,0.00016712,2]
[390589231,1760095842442,-500.0,0.00016712,2]
[390589232,1760095842450,-500.0,0.00016712,2]
[390589233,1760095842459,-302.88,0.00016712,2]
[390589234,1760095842468,-500.0,0.00016712,2]
[390589235,1760095842477,-346.05,0.00016712,2]
[390589236,1760095842486,-500.0,0.00016712,2]
[390589237,1760095842495,-500.0,0.00016712,2]
[390589238,1760095842504,-500.0,0.00016712,2]
[390589240,1760095842512,-500.0,0.00016712,2]
[390589241,1760095842521,-500.0,0.00016712,2]
[390589243,1760095842530,-500.0,0.00016712,2]
[390589246,1760095842539,-504.79543064,0.00016712,2]
[390589247,1760095842548,-500.0,0.00016712,2]
[390589250,1760095842556,-500.0,0.00016712,2]
[390589252,1760095842565,-196.68,0.00016712,2]
[390589254,1760095842574,-500.0,0.00016712,2]
[390589256,1760095842583,-500.0,0.00016712,2]
[390589257,1760095842594,-500.0,0.00016712,2]
[390589258,1760095842603,-500.0,0.00016712,2]
[390589259,1760095842612,-500.0,0.00016712,2]
[390589260,1760095842621,-500.0,0.00016712,2]
[390589262,1760095842629,-241.15,0.00016712,2]
[390589263,1760095842639,-500.0,0.00016712,2]
[390589264,1760095842648,-500.0,0.00016712,2]
[390589265,1760095842657,-151.921519,0.00016712,2]
[390589266,1760095842667,-500.0,0.00016712,2]
[390589267,1760095842675,-500.0,0.00016712,2]
[390589268,1760095842684,-152.357197,0.00016712,2]
[390589269,1760095842693,-151.0,0.00016712,2]
[390589270,1760095842708,-504.46235689,0.00016712,2]
[390589271,1760095842717,-151.638751,0.00016712,2]
[390589272,1760095842726,-500.0,0.00016712,2]
[390589273,1760095842735,-500.0,0.00016712,2]
[390589274,1760095842745,-500.0,0.00016712,2]
[390589275,1760095842754,-500.0,0.00016712,2]
[390589276,1760095842763,-500.0,0.00016712,2]
[390589277,1760095842772,-497.0,0.00016712,2]
[390589278,1760095842781,-500.0,0.00016712,2]
[390589280,1760095842790,-1066.0,0.00016712,2]
[390589282,1760095842799,-500.0,0.00016712,2]
[390589284,1760095842808,-500.0,0.00016712,2]
[390589286,1760095842817,-208.18294604,0.00016712,2]
[390589287,1760095842826,-461.63971521,0.00016712,2]
[390589288,1760095842835,-161.80879077,0.00016712,2]
[390589290,1760095842845,-500.0,0.00016712,2]
[390589292,1760095842854,-500.0,0.00016712,2]
[390589294,1760095842863,-500.0,0.00016712,2]
[390589296,1760095842872,-508.61087227,0.00016712,2]
[390589298,1760095842886,-500.0,0.00016712,2]
[390589300,1760095842895,-502.06924811,0.00016712,2]
[390589302,1760095842904,-500.0,0.00016712,2]
[390589304,1760095842914,-188.56000202,0.00016712,2]
[390589306,1760095842924,-500.0,0.00016712,2]
[390589308,1760095842934,-742.52,0.00016712,2]
[390589310,1760095842942,-151.0,0.00016712,2]
[390589312,1760095842954,-500.0,0.00016712,2]
[390589314,1760095842963,-500.0,0.00016712,2]
[390589316,1760095842973,-151.0,0.00016712,2]
[390589318,1760095842984,-151.0,0.00016712,2]
[390589320,1760095842993,-500.0,0.00016712,2]
[390589322,1760095843002,-151.0,0.00016712,2]
[390589324,1760095843011,-151.0,0.00016712,2]
[390589326,1760095843020,-151.0,0.00016712,2]
[390589328,1760095843028,-500.0,0.00016712,2]
[390589330,1760095843037,-500.0,0.00016712,2]
[390589332,1760095843047,-500.0,0.00016712,2]
[390589334,1760095843056,-151.0,0.00016712,2]
[390589336,1760095843065,-151.0,0.00016712,2]
[390589338,1760095843074,-809.03,0.00016712,2]
[390589340,1760095843083,-660.24,0.00016712,2]
[390589342,1760095843092,-500.0,0.00016712,2]
[390589344,1760095843101,-500.0,0.00016712,2]
[390589346,1760095843110,-500.0,0.00016712,2]
[390589348,1760095843119,-500.0,0.00016712,2]
[390589350,1760095843127,-500.0,0.00016712,2]
[390589352,1760095843136,-151.0,0.00016712,2]
[390589354,1760095843145,-1263.64,0.00016712,2]
[390589356,1760095843154,-500.0,0.00016712,2]
[390589358,1760095843162,-500.0,0.00016712,2]
[390589360,1760095843171,-874.2,0.00016712,2]
[390589362,1760095843181,-279.947969,0.00016712,2]
[390589364,1760095843189,-500.0,0.00016712,2]
[390589366,1760095843199,-506.32865722,0.00016712,2]
[390589368,1760095843207,-500.0,0.00016712,2]
[390589369,1760095843216,-500.0,0.00016712,2]
[390589371,1760095843225,-227.8891446,0.00016712,2]
[390589373,1760095843233,-500.0,0.00016712,2]
[390589375,1760095843242,-500.0,0.00016712,2]
[390589377,1760095843251,-500.0,0.00016712,2]
[390589379,1760095843260,-1426.27,0.00016712,2]
[390589381,1760095843269,-832.39,0.00016712,2]
[390589383,1760095843277,-500.0,0.00016712,2]
[390589385,1760095843286,-500.0,0.00016712,2]
[390589387,1760095843295,-359.82968162,0.00016712,2]
[390589389,1760095843304,-151.0,0.00016712,2]
[390589391,1760095843313,-286.06710445,0.00016712,2]
[390589393,1760095843322,-606.65792336,0.00016712,2]
[390589395,1760095843331,-500.0,0.00016712,2]
[390589397,1760095843340,-151.0,0.00016712,2]
[390589399,1760095843350,-151.0,0.00016712,2]
[390589401,1760095843359,-890.61,0.00016712,2]
[390589403,1760095843369,-500.0,0.00016712,2]
[390589405,1760095843378,-500.0,0.00016712,2]
[390589407,1760095843387,-1027.23,0.00016712,2]
[390589410,1760095843396,-151.0,0.00016712,2]
[390589411,1760095843405,-151.0,0.00016712,2]
[390589413,1760095843414,-500.0,0.00016712,2]
[390589415,1760095843424,-722.83,0.00016712,2]
[390589417,1760095843435,-1445.346401,0.00016712,2]
[390589419,1760095843444,-238.15149743,0.00016712,2]
[390589421,1760095843454,-5551.09,0.00016712,2]
[390589423,1760095843463,-500.0,0.00016712,2]
[390589425,1760095843472,-500.0,0.00016712,2]
[390589427,1760095843482,-424.154854,0.00016712,2]
[390589429,1760095843491,-500.0,0.00016712,2]
[390589431,1760095843500,-500.0,0.00016712,2]
[390589433,1760095843510,-500.0,0.00016712,2]
[390589436,1760095843520,-246.05984314,0.00016712,2]
[390589438,1760095843529,-500.0,0.00016712,2]
[390589440,1760095843540,-721.8,0.00016712,2]
[390589442,1760095843549,-500.0,0.00016712,2]
[390589459,1760095843699,-499.17671403,0.00016712,2]
[390589461,1760095843708,-500.0,0.00016712,2]
[390589463,1760095843718,-500.0,0.00016712,2]
[390589465,1760095843727,-500.0,0.00016712,2]
[390589467,1760095843736,-1742.7,0.00016712,2]
[390589469,1760095843745,-500.0,0.00016712,2]
[390589471,1760095843755,-525.57225404,0.00016712,2]
[390589473,1760095843764,-500.0,0.00016712,2]
[390589475,1760095843773,-2244.03,0.00016712,2]
[390589477,1760095843782,-1431.73,0.00016712,2]
[390589479,1760095843791,-500.0,0.00016712,2]
[390589481,1760095843800,-596.13888638,0.00016712,2]
[390589483,1760095843809,-500.0,0.00016712,2]
[390589485,1760095843818,-5353.06,0.00016712,2]
[390589487,1760095843828,-544.85,0.00016712,2]
[390589489,1760095843837,-500.0,0.00016712,2]
[390589491,1760095843846,-500.0,0.00016712,2]
[390589493,1760095843855,-379.66,0.00016712,2]
[390589495,1760095843864,-500.0,0.00016712,2]
[390589497,1760095843873,-569.01,0.00016712,2]
[390589499,1760095843887,-1124.83,0.00016712,2]
[390589501,1760095843897,-500.0,0.00016712,2]
[390589503,1760095843906,-500.0,0.00016712,2]
[390589506,1760095843915,-500.0,0.00016712,2]
[390589507,1760095843927,-500.26,0.00016712,2]
[390589510,1760095843936,-5038.57,0.00016712,2]
[390589512,1760095843946,-924.12,0.00016712,2]
[390589514,1760095843956,-793.59,0.00016712,2]
[390589515,1760095843965,-700.28,0.00016712,2]
[390589517,1760095843974,-500.0,0.00016712,2]
[390589520,1760095843983,-500.0,0.00016712,2]
[390589522,1760095843992,-500.0,0.00016712,2]
[390589523,1760095844001,-763.56,0.00016712,2]
[390589525,1760095844010,-1985.95,0.00016712,2]
[390589528,1760095844019,-701.69,0.00016712,2]
[390589530,1760095844029,-600.56,0.00016712,2]
[390589532,1760095844038,-500.0,0.00016712,2]
[390589534,1760095844047,-500.0,0.00016712,2]
[390589536,1760095844055,-500.0,0.00016712,2]
[390589538,1760095844064,-500.0,0.00016712,2]
[390589540,1760095844074,-151.0,0.00016712,2]
[390589542,1760095844083,-151.0,0.00016712,2]
[390589544,1760095844091,-670.0,0.00016712,2]
[390589546,1760095844101,-500.0,0.00016712,2]
[390589548,1760095844110,-1144.87,0.00016712,2]
[390589550,1760095844119,-500.0,0.00016712,2]
[390589551,1760095844129,-3376.75,0.00016712,2]
[390589554,1760095844138,-1099.92,0.00016712,2]
[390589555,1760095844148,-500.0,0.00016712,2]
[390589557,1760095844158,-500.0,0.00016712,2]
[390589560,1760095844168,-994.15,0.00016712,2]
[390589562,1760095844178,-500.0,0.00016712,2]
[390589564,1760095844187,-500.0,0.00016712,2]
[390589566,1760095844196,-500.0,0.00016712,2]
[390589568,1760095844207,-791.35,0.00016712,2]
[390589569,1760095844217,-500.0,0.00016712,2]
[390589571,1760095844227,-500.0,0.00016712,2]
[390589573,1760095844235,-500.0,0.00016712,2]
[390589575,1760095844245,-582.25,0.00016712,2]
[390589577,1760095844254,-500.0,0.00016712,2]
[390589580,1760095844264,-3245.23,0.00016712,2]
[390589581,1760095844275,-1572.59,0.00016712,2]
[390589584,1760095844284,-500.0,0.00016712,2]
[390589585,1760095844293,-500.0,0.00016712,2]
[390589587,1760095844301,-500.0,0.00016712,2]
[390589589,1760095844310,-500.0,0.00016712,2]
[390589591,1760095844320,-151.0,0.00016712,2]
[390589594,1760095844329,-500.0,0.00016712,2]
[390589596,1760095844338,-151.0,0.00016712,2]
[390589598,1760095844347,-151.0,0.00016712,2]
[390589600,1760095844356,-151.0,0.00016712,2]
[390589602,1760095844366,-158.25077607,0.00016712,2]
[390589604,1760095844375,-151.0,0.00016712,2]
[390589606,1760095844384,-151.0,0.00016712,2]
[390589608,1760095844393,-500.0,0.00016712,2]
[390589610,1760095844402,-500.0,0.00016712,2]
[390589612,1760095844411,-500.0,0.00016712,2]
[390589614,1760095844420,-4619.19,0.00016712,2]
[390589616,1760095844430,-327.42377819,0.00016712,2]
[390589618,1760095844439,-500.0,0.00016712,2]
[390589620,1760095844448,-500.0,0.00016712,2]
[390589622,1760095844456,-500.0,0.00016712,2]
[390589624,1760095844466,-500.0,0.00016712,2]
[390589626,1760095844475,-500.0,0.00016712,2]
[390589628,1760095844486,-569.47,0.00016712,2]
[390589630,1760095844495,-500.0,0.00016712,2]
[390589632,1760095844503,-293.014755,0.00016712,2]
[390589634,1760095844512,-293.014755,0.00016712,2]
[390589636,1760095844521,-500.0,0.00016712,2]
[390589638,1760095844530,-2243.65,0.00016712,2]
[390589640,1760095844539,-293.014755,0.00016712,2]
[390589642,1760095844549,-293.014755,0.00016712,2]
[390589644,1760095844558,-293.014755,0.00016712,2]
[390589645,1760095844567,-293.014755,0.00016712,2]
[390589647,1760095844576,-293.014755,0.00016712,2]
[390589649,1760095844585,-293.014755,0.00016712,2]
[390589651,1760095844594,-500.0,0.00016712,2]
[390589653,1760095844603,-500.0,0.00016712,2]
[390589656,1760095844614,-500.0,0.00016712,2]
[390589657,1760095844623,-2142.8,0.00016712,2]
[390589659,1760095844633,-500.0,0.00016712,2]
[390589661,1760095844642,-154.141836,0.00016712,2]
[390589663,1760095844651,-500.0,0.00016712,2]
[390589665,1760095844660,-500.0,0.00016712,2]
[390589667,1760095844671,-532.37,0.00016712,2]
[390589670,1760095844682,-500.0,0.00016712,2]
[390589672,1760095844691,-1011.95,0.00016712,2]
[390589673,1760095844701,-953.92,0.00016712,2]
[390589675,1760095844710,-500.4640918,0.00016712,2]
[390589678,1760095844720,-151.0,0.00016712,2]
[390589680,1760095844729,-151.0,0.00016712,2]
[390589682,1760095844740,-151.0,0.00016712,2]
[390589684,1760095844751,-871.65,0.00016712,2]
[390589686,1760095844761,-151.0,0.00016712,2]
[390589688,1760095844771,-500.0,0.00016712,2]
[390589689,1760095844780,-151.0,0.00016712,2]
[390589691,1760095844790,-185.618188,0.00016712,2]
[390589693,1760095844799,-151.0,0.00016712,2]
[390589695,1760095844808,-500.0,0.00016712,2]
[390589697,1760095844817,-151.0,0.00016712,2]
[390589699,1760095844827,-500.0,0.00016712,2]
[390589701,1760095844836,-811.16,0.00016712,2]
[390589703,1760095844845,-151.0,0.00016712,2]
[390589705,1760095844854,-2314.03,0.00016712,2]
[390589707,1760095844863,-151.0,0.00016712,2]
[390589709,1760095844875,-561.27,0.00016712,2]
[390589711,1760095844888,-339.62772809,0.00016712,2]
[390589713,1760095844897,-151.0,0.00016712,2]
[390589715,1760095844906,-151.0,0.00016712,2]
[390589717,1760095844916,-500.0,0.00016712,2]
[390589719,1760095844926,-151.0,0.00016712,2]
[390589721,1760095844935,-816.33,0.00016712,2]
[390589723,1760095844944,-500.0,0.00016712,2]
[390589726,1760095844955,-1826.06,0.00016712,2]
[390589728,1760095844964,-681.31,0.00016712,2]
[390589730,1760095844974,-151.0,0.00016712,2]
[390589732,1760095844984,-555.79,0.00016712,2]
[390589734,1760095844993,-151.0,0.00016712,2]
[390589736,1760095845003,-151.0,0.00016712,2]
[390589738,1760095845011,-854.27,0.00016712,2]
[390589739,1760095845022,-151.0,0.00016712,2]
[390589741,1760095845033,-151.0,0.00016712,2]
[390589743,1760095845043,-500.0,0.00016712,2]
[390589746,1760095845052,-500.0,0.00016712,2]
[390589748,1760095845061,-500.0,0.00016712,2]
[390589749,1760095845070,-500.60525948,0.00016712,2]
[390589751,1760095845079,-551.77,0.00016712,2]
[390589754,1760095845088,-574.27,0.00016712,2]
[390589756,1760095845098,-500.0,0.00016712,2]
[390589757,1760095845107,-151.0,0.00016712,2]
[390589759,1760095845115,-151.0,0.00016712,2]
[390589761,1760095845125,-500.0,0.00016712,2]
[390589763,1760095845133,-500.0,0.00016712,2]
[390589765,1760095845142,-500.0,0.00016712,2]
[390589767,1760095845151,-983.55,0.00016712,2]
[390589769,1760095845160,-2684.75,0.00016712,2]
[390589771,1760095845169,-171.840987,0.00016712,2]
[390589773,1760095845178,-171.840987,0.00016712,2]
[390589775,1760095845187,-500.0,0.00016712,2]
[390589777,1760095845195,-171.840987,0.00016712,2]
[390589779,1760095845205,-171.840987,0.00016712,2]
[390589781,1760095845214,-171.840987,0.00016712,2]
[390589783,1760095845223,-171.840987,0.00016712,2]
[390589785,1760095845232,-1820.76,0.00016712,2]
[390589787,1760095845241,-171.840987,0.00016712,2]
[390589789,1760095845250,-171.840987,0.00016712,2]
[390589791,1760095845266,-500.0,0.00016712,2]
[390589793,1760095845275,-500.0,0.00016712,2]
[390589796,1760095845284,-351.79,0.00016712,2]
[390589798,1760095845293,-211.983586,0.00016712,2]
[390589800,1760095845302,-211.983586,0.00016712,2]
[390589802,1760095845312,-211.983586,0.00016712,2]
[390589803,1760095845321,-211.983586,0.00016712,2]
[390589806,1760095845331,-615.19,0.00016712,2]
[390589807,1760095845340,-211.983586,0.00016712,2]
[390589809,1760095845350,-211.983586,0.00016712,2]
[390589812,1760095845359,-768.74,0.00016712,2]
[390589813,1760095845369,-500.0,0.00016712,2]
[390589815,1760095845379,-211.983586,0.00016712,2]
[390589817,1760095845388,-211.983586,0.00016712,2]
[390589819,1760095845397,-500.0,0.00016712,2]
[390589821,1760095845406,-500.0,0.00016712,2]
[390589823,1760095845416,-500.0,0.00016712,2]
[390589825,1760095845425,-234.86366,0.00016712,2]
[390589828,1760095845437,-500.0,0.00016712,2]
[390589829,1760095845446,-500.0,0.00016712,2]
[390589832,1760095845455,-4249.09,0.00016765,2]
[390589834,1760095845464,-300.0,0.00016766,2]
[390589835,1760095845473,-300.0,0.00016766,2]
[390589837,1760095845482,-300.0,0.00016766,2]
[390589839,1760095845491,-300.0,0.00016766,2]
[390589841,1760095845501,-300.0,0.00016766,2]
[390589843,1760095845510,-300.0,0.00016766,2]
[390589845,1760095845519,-300.0,0.00016766,2]
[390589847,1760095845529,-300.0,0.00016766,2]
[390589849,1760095845538,-300.0,0.00016766,2]
[390589853,1760095845549,-300.0,0.00016766,2]
[390589856,1760095845558,-300.0,0.00016766,2]
[390589859,1760095845567,-300.0,0.00016766,2]
[390589862,1760095845577,-300.0,0.00016766,2]
[390589865,1760095845586,-300.0,0.00016766,2]
[390589868,1760095845597,-300.0,0.00016766,2]
[390589871,1760095845606,-600.0,0.00016766,2]
[390589873,1760095845615,-151.0,0.00016766,2]
[390589877,1760095845625,-151.0,0.00016766,2]
[390589880,1760095845634,-302.5006052,0.000168,2]
[390589883,1760095845644,-293.0,0.00016822,3]
[390589885,1760095845653,-526.0,0.0001683,2]
[390589889,1760095845662,-526.0,0.00016842,2]
[390589892,1760095845671,-551.5503027,0.00016886,2]
[390589894,1760095845681,-255.35221948,0.000169,2]
[390589897,1760095845690,-151.0,0.00016909,2]
[390589901,1760095845700,-417.15472785,0.00016909,2]
[390589904,1760095845709,-234.32063665,0.00016909,2]
[390589907,1760095845718,-160.0,0.00016909,2]
[390589910,1760095845728,-1041.66666667,0.00016911,2]
[390589912,1760095845737,-298.03512572,0.00016911,2]
[390589916,1760095845746,-160.0,0.00016911,2]
[390589918,1760095845756,-160.0,0.00016911,2]
[390589920,1760095845765,-375.33139166,0.00016955,2]
[390589922,1760095845774,-239.06881,0.00016985,2]
[390589924,1760095845783,-151.0,0.00016985,2]
[390589927,1760095845792,-591.5430505,0.00016985,2]
[390589930,1760095845803,-270.09877645,0.00016985,2]
[390589933,1760095845812,-4249.09,0.00016985,2]
[390589936,1760095845823,-4249.09,0.00016985,2]
[390589939,1760095845832,-4249.09,0.00016985,2]
[390589942,1760095845842,-4249.09,0.00016985,2]
[390589945,1760095845851,-4249.09,0.00016985,2]
[390589948,1760095845860,-4249.09,0.00016985,2]
[390589950,1760095845870,-4249.09,0.00016985,2]
[390589954,1760095845883,-4249.09,0.00016985,2]
[390589957,1760095845894,-4249.27166338,0.00016985,2]
[390589961,1760095845904,-151.0,0.00016985,2]
[390589963,1760095845913,-151.0,0.00016985,2]
[390589967,1760095845925,-151.0,0.00016985,2]
[390589969,1760095845934,-151.0,0.00016985,2]
[390589971,1760095845944,-245.798995,0.00016985,2]
[390589973,1760095845954,-171.840987,0.00016985,2]
[390589975,1760095845963,-171.840987,0.00016985,2]
[390589976,1760095845972,-171.840987,0.00016985,2]
[390589978,1760095845981,-171.840987,0.00016985,2]
[390589980,1760095845990,-211.983586,0.00016985,2]
[390589982,1760095846000,-211.983586,0.00016985,2]
[390589985,1760095846009,-211.983586,0.00016985,2]
[390589986,1760095846018,-211.983586,0.00016985,2]
[390589988,1760095846029,-500.0,0.00016986,2]
[390589990,1760095846038,-500.0,0.00016986,2]
[390589992,1760095846047,-672.77,0.00016986,2]
[390589994,1760095846057,-500.0,0.00016986,2]
[390589996,1760095846068,-500.0,0.00016986,2]
[390589998,1760095846080,-500.0,0.00016986,2]